[Event "Late-Titled-Tuesday-Blitz-March-05-2024"]
[Site "Chess.com"]
[Date "2024.03.05"]
[Round "2"]
[White "KetiTsatsalashvili"]
[Black "JiiHart"]
[Result "1-0"]
[WhiteElo "2468"]
[BlackElo "2172"]
[TimeControl "180+1"]
[EndTime "14:14:15 PST"]
[Termination "KetiTsatsalashvili won by resignation"]

1. d4 {[%clk 0:02:45.3]} 1... d5 {[%clk 0:02:59]} 2. Nf3 {[%clk 0:02:45.6]} 2...
Nf6 {[%clk 0:02:58.5]} 3. e3 {[%clk 0:02:46.1]} 3... c5 {[%clk 0:02:51.9]} 4. b3
{[%clk 0:02:45.9]} 4... cxd4 {[%clk 0:02:48.2]} 5. exd4 {[%clk 0:02:45]} 5...
Bg4 {[%clk 0:02:45.3]} 6. Be2 {[%clk 0:02:45.1]} 6... Nc6 {[%clk 0:02:44.3]} 7.
O-O {[%clk 0:02:45.4]} 7... e6 {[%clk 0:02:44.1]} 8. Bb2 {[%clk 0:02:45.9]} 8...
Bd6 {[%clk 0:02:42.4]} 9. Nbd2 {[%clk 0:02:46.3]} 9... O-O {[%clk 0:02:16.5]}
10. h3 {[%clk 0:02:46]} 10... Bh5 {[%clk 0:02:08.6]} 11. Ne5 {[%clk 0:02:46.1]}
11... Bxe2 {[%clk 0:02:07.1]} 12. Qxe2 {[%clk 0:02:47]} 12... Qb6 {[%clk
0:01:48.3]} 13. Ndf3 {[%clk 0:02:43.1]} 13... Ne4 {[%clk 0:01:42.9]} 14. Nd7
{[%clk 0:02:39.6]} 14... Qc7 {[%clk 0:01:34.4]} 15. Nxf8 {[%clk 0:02:39.6]}
15... Rxf8 {[%clk 0:01:34.7]} 16. Nd2 {[%clk 0:02:34.5]} 16... Nf6 {[%clk
0:01:29.7]} 17. Rac1 {[%clk 0:02:33.5]} 17... g6 {[%clk 0:01:18.9]} 18. c4
{[%clk 0:02:33.2]} 18... Nh5 {[%clk 0:01:18.8]} 19. cxd5 {[%clk 0:02:25.7]}
19... Nf4 {[%clk 0:01:12.2]} 20. Qf3 {[%clk 0:02:23.2]} 20... exd5 {[%clk
0:01:10.4]} 21. Rfe1 {[%clk 0:02:17.7]} 21... Nb4 {[%clk 0:01:03.5]} 22. Rxc7
{[%clk 0:02:17]} 1-0

[Event "Late-Titled-Tuesday-Blitz-March-05-2024"]
[Site "Chess.com"]
[Date "2024.03.05"]
[Round "2"]
[White "pooh2012"]
[Black "Veleamater"]
[Result "1-0"]
[WhiteElo "2528"]
[BlackElo "2321"]
[TimeControl "180+1"]
[EndTime "14:14:30 PST"]
[Termination "pooh2012 won by resignation"]

1. d4 {[%clk 0:03:00.9]} 1... d6 {[%clk 0:03:00.9]} 2. Nf3 {[%clk 0:02:59.9]}
2... g6 {[%clk 0:03:01.5]} 3. c3 {[%clk 0:02:58.1]} 3... Bg7 {[%clk 0:03:02.2]}
4. h4 {[%clk 0:02:57.7]} 4... Nf6 {[%clk 0:03:02.9]} 5. Nbd2 {[%clk 0:02:55]}
5... Nc6 {[%clk 0:03:02.7]} 6. b4 {[%clk 0:02:52.1]} 6... a6 {[%clk 0:03:00.1]}
7. Qb3 {[%clk 0:02:47.5]} 7... O-O {[%clk 0:02:59]} 8. e3 {[%clk 0:02:42.4]}
8... e5 {[%clk 0:02:58.8]} 9. Be2 {[%clk 0:02:37.2]} 9... exd4 {[%clk
0:02:57.7]} 10. cxd4 {[%clk 0:02:36.2]} 10... Be6 {[%clk 0:02:52]} 11. Qb2
{[%clk 0:02:26.8]} 11... b5 {[%clk 0:02:51.1]} 12. a4 {[%clk 0:02:17.5]} 12...
Nd5 {[%clk 0:02:43.9]} 13. axb5 {[%clk 0:02:09.8]} 13... axb5 {[%clk 0:02:43.5]}
14. Bxb5 {[%clk 0:02:10.1]} 14... Rxa1 {[%clk 0:02:42.9]} 15. Qxa1 {[%clk
0:02:09.1]} 15... Ncxb4 {[%clk 0:02:41.9]} 16. O-O {[%clk 0:02:07.6]} 16... c5
{[%clk 0:02:41.3]} 17. Bb2 {[%clk 0:02:03.3]} 17... Qb6 {[%clk 0:02:39.9]} 18.
Bc4 {[%clk 0:01:43.3]} 18... Rb8 {[%clk 0:02:35]} 19. dxc5 {[%clk 0:01:40.1]}
19... dxc5 {[%clk 0:02:34.1]} 20. Bxg7 {[%clk 0:01:38]} 20... Nc2 {[%clk
0:02:33.3]} 21. Qe5 {[%clk 0:01:25.4]} 21... Ndxe3 {[%clk 0:02:15.6]} 22. fxe3
{[%clk 0:01:21.8]} 22... Nxe3 {[%clk 0:02:15.2]} 23. Qxe3 {[%clk 0:01:09.8]}
23... Kxg7 {[%clk 0:02:15.1]} 24. Qe5+ {[%clk 0:01:05.3]} 24... Kg8 {[%clk
0:02:14.5]} 25. Bxe6 {[%clk 0:01:01.3]} 25... fxe6 {[%clk 0:02:14.1]} 26. Rb1
{[%clk 0:01:00.2]} 1-0

[Event "Late-Titled-Tuesday-Blitz-March-05-2024"]
[Site "Chess.com"]
[Date "2024.03.05"]
[Round "2"]
[White "Statham_01"]
[Black "JSPrepz"]
[Result "0-1"]
[WhiteElo "2577"]
[BlackElo "2843"]
[TimeControl "180+1"]
[EndTime "14:14:46 PST"]
[Termination "JSPrepz won by resignation"]

1. e4 {[%clk 0:03:00.9]} 1... e5 {[%clk 0:02:59.9]} 2. Nf3 {[%clk 0:03:01.4]}
2... Nc6 {[%clk 0:02:59.7]} 3. c3 {[%clk 0:03:01.6]} 3... d5 {[%clk 0:02:58.7]}
4. Bb5 {[%clk 0:03:01.1]} 4... dxe4 {[%clk 0:02:46.2]} 5. Nxe5 {[%clk
0:03:01.3]} 5... Qd5 {[%clk 0:02:45.7]} 6. Qa4 {[%clk 0:02:58.9]} 6... Ne7
{[%clk 0:02:44.2]} 7. f4 {[%clk 0:02:58.5]} 7... exf3 {[%clk 0:02:43.7]} 8. Nxf3
{[%clk 0:02:57.8]} 8... a6 {[%clk 0:02:35.4]} 9. Bc4 {[%clk 0:02:23.3]} 9... Qh5
{[%clk 0:02:30.7]} 10. Be2 {[%clk 0:02:10.4]} 10... Qg6 {[%clk 0:02:27.4]} 11.
O-O {[%clk 0:02:05.8]} 11... Bd7 {[%clk 0:02:26.5]} 12. d4 {[%clk 0:01:53.9]}
12... O-O-O {[%clk 0:02:19.6]} 13. Bf4 {[%clk 0:01:36.3]} 13... Nd5 {[%clk
0:02:18.7]} 14. Bg3 {[%clk 0:01:34.8]} 14... Ne3 {[%clk 0:02:07.6]} 15. Re1
{[%clk 0:01:24.4]} 15... Nb4 {[%clk 0:01:41.3]} 16. Qa5 {[%clk 0:01:18.8]} 16...
b6 {[%clk 0:01:25.7]} 17. Bxa6+ {[%clk 0:01:16.7]} 17... Kb8 {[%clk 0:01:25.1]}
18. Qxb6+ {[%clk 0:01:16.2]} 18... Qxb6 {[%clk 0:01:24.5]} 0-1

[Event "Late-Titled-Tuesday-Blitz-March-05-2024"]
[Site "Chess.com"]
[Date "2024.03.05"]
[Round "2"]
[White "db-banana"]
[Black "lluiss"]
[Result "1-0"]
[WhiteElo "2465"]
[BlackElo "2165"]
[TimeControl "180+1"]
[EndTime "14:14:55 PST"]
[Termination "db-banana won by resignation"]

1. e4 {[%clk 0:02:56.5]} 1... c5 {[%clk 0:02:59.9]} 2. Nf3 {[%clk 0:02:56]} 2...
d6 {[%clk 0:03:00.3]} 3. d3 {[%clk 0:02:56.5]} 3... g6 {[%clk 0:02:55]} 4. g3
{[%clk 0:02:56.1]} 4... Bg7 {[%clk 0:02:54.8]} 5. Bg2 {[%clk 0:02:55.3]} 5... e5
{[%clk 0:02:55.3]} 6. O-O {[%clk 0:02:54.7]} 6... Ne7 {[%clk 0:02:55.9]} 7. c3
{[%clk 0:02:55.3]} 7... Nbc6 {[%clk 0:02:55.8]} 8. d4 {[%clk 0:02:55.7]} 8...
cxd4 {[%clk 0:02:49.6]} 9. cxd4 {[%clk 0:02:53]} 9... Nxd4 {[%clk 0:02:46.1]}
10. Nxd4 {[%clk 0:02:53.1]} 10... exd4 {[%clk 0:02:47]} 11. Bg5 {[%clk
0:02:49.8]} 11... f6 {[%clk 0:02:39.9]} 12. Qxd4 {[%clk 0:02:43.5]} 12... O-O
{[%clk 0:02:39.9]} 13. Bf4 {[%clk 0:02:39.6]} 13... Nc6 {[%clk 0:02:26.3]} 14.
Qxd6 {[%clk 0:02:34.3]} 14... Qxd6 {[%clk 0:02:27.2]} 15. Bxd6 {[%clk
0:02:34.6]} 15... Rd8 {[%clk 0:02:27.5]} 16. Bf4 {[%clk 0:02:33.3]} 16... f5
{[%clk 0:02:27.4]} 17. Nc3 {[%clk 0:02:31.8]} 17... Nb4 {[%clk 0:02:14.2]} 18.
Rad1 {[%clk 0:02:15.2]} 18... Nd3 {[%clk 0:02:11.7]} 19. Bg5 {[%clk 0:02:14.1]}
19... Rd4 {[%clk 0:02:04.9]} 20. Nb5 {[%clk 0:02:05.5]} 20... Rd7 {[%clk
0:01:36.8]} 21. exf5 {[%clk 0:02:03.9]} 21... a6 {[%clk 0:01:33.5]} 22. Nc3
{[%clk 0:01:38.2]} 22... Nxb2 {[%clk 0:01:31.9]} 23. Rxd7 {[%clk 0:01:33]} 23...
Bxd7 {[%clk 0:01:32.8]} 24. f6 {[%clk 0:01:33]} 24... h6 {[%clk 0:01:23.4]} 25.
Bd5+ {[%clk 0:01:30.9]} 25... Kh7 {[%clk 0:01:22.4]} 26. fxg7 {[%clk 0:01:26.4]}
1-0

[Event "Late-Titled-Tuesday-Blitz-March-05-2024"]
[Site "Chess.com"]
[Date "2024.03.05"]
[Round "2"]
[White "Ajedrez_con_German"]
[Black "Lukianoo"]
[Result "0-1"]
[WhiteElo "2584"]
[BlackElo "2875"]
[TimeControl "180+1"]
[EndTime "14:14:57 PST"]
[Termination "Lukianoo won by resignation"]

1. Nf3 {[%clk 0:03:00.9]} 1... Nf6 {[%clk 0:02:59.6]} 2. c4 {[%clk 0:02:54.5]}
2... e6 {[%clk 0:02:59.6]} 3. e3 {[%clk 0:02:54.8]} 3... d5 {[%clk 0:02:59.4]}
4. Nc3 {[%clk 0:02:55]} 4... Bb4 {[%clk 0:02:59]} 5. Qa4+ {[%clk 0:02:46]} 5...
Nc6 {[%clk 0:02:58.8]} 6. cxd5 {[%clk 0:02:45.8]} 6... exd5 {[%clk 0:02:53.8]}
7. Ne5 {[%clk 0:02:44.7]} 7... Bxc3 {[%clk 0:02:43]} 8. bxc3 {[%clk 0:02:41.4]}
8... O-O {[%clk 0:02:21.5]} 9. Nxc6 {[%clk 0:02:31.7]} 9... bxc6 {[%clk
0:02:22.4]} 10. Qxc6 {[%clk 0:02:24]} 10... Bd7 {[%clk 0:02:19.9]} 11. Qa6
{[%clk 0:02:18.4]} 11... Ne4 {[%clk 0:02:14.7]} 12. Be2 {[%clk 0:02:16.6]} 12...
Qg5 {[%clk 0:02:09]} 13. O-O {[%clk 0:02:10.4]} 13... Rab8 {[%clk 0:02:02.2]}
14. f4 {[%clk 0:01:54]} 14... Qh4 {[%clk 0:01:58]} 15. Ba3 {[%clk 0:01:44]}
15... Rb6 {[%clk 0:01:55]} 16. Qa5 {[%clk 0:00:51.2]} 16... Rh6 {[%clk
0:01:50.6]} 17. h3 {[%clk 0:00:49.7]} 17... Bxh3 {[%clk 0:01:48.6]} 18. Qb4
{[%clk 0:00:45.7]} 18... c5 {[%clk 0:01:46.2]} 0-1

[Event "Late-Titled-Tuesday-Blitz-March-05-2024"]
[Site "Chess.com"]
[Date "2024.03.05"]
[Round "2"]
[White "kinga2008"]
[Black "morte-negra"]
[Result "1-0"]
[WhiteElo "2441"]
[BlackElo "2047"]
[TimeControl "180+1"]
[EndTime "14:15:07 PST"]
[Termination "kinga2008 won by resignation"]

1. e4 {[%clk 0:02:57.9]} 1... c5 {[%clk 0:03:00.4]} 2. Nf3 {[%clk 0:02:48.8]}
2... d6 {[%clk 0:03:00.7]} 3. Bd3 {[%clk 0:02:46.1]} 3... Nc6 {[%clk 0:02:56.5]}
4. O-O {[%clk 0:02:46.9]} 4... Nf6 {[%clk 0:02:55.2]} 5. c3 {[%clk 0:02:47.8]}
5... e5 {[%clk 0:02:54]} 6. Bc2 {[%clk 0:02:39.6]} 6... Be6 {[%clk 0:02:52.1]}
7. d4 {[%clk 0:02:31.6]} 7... cxd4 {[%clk 0:02:49.7]} 8. cxd4 {[%clk 0:02:16.9]}
8... exd4 {[%clk 0:02:43.8]} 9. Nxd4 {[%clk 0:02:16.3]} 9... Nxd4 {[%clk
0:02:44.4]} 10. Qxd4 {[%clk 0:02:15.2]} 10... Be7 {[%clk 0:02:42.7]} 11. Nc3
{[%clk 0:02:15.5]} 11... O-O {[%clk 0:02:41.1]} 12. Bf4 {[%clk 0:02:15.1]} 12...
Nh5 {[%clk 0:02:29]} 13. Be3 {[%clk 0:02:14.1]} 13... Bf6 {[%clk 0:02:18.3]} 14.
Qd2 {[%clk 0:02:13.4]} 14... g6 {[%clk 0:02:13.6]} 15. Rfd1 {[%clk 0:02:10.5]}
15... Qc8 {[%clk 0:01:56.6]} 16. Nb5 {[%clk 0:01:57.4]} 16... Be7 {[%clk
0:01:52]} 17. Rac1 {[%clk 0:01:55]} 17... a6 {[%clk 0:01:50.4]} 18. Nxd6 {[%clk
0:01:53.4]} 18... Bxd6 {[%clk 0:01:38]} 19. Qxd6 {[%clk 0:01:54.3]} 19... Rd8
{[%clk 0:01:37.1]} 20. Qe5 {[%clk 0:01:44.1]} 20... Rxd1+ {[%clk 0:01:33.5]} 21.
Bxd1 {[%clk 0:01:37.4]} 21... Qd7 {[%clk 0:01:31.8]} 22. Bxh5 {[%clk 0:01:31.6]}
22... gxh5 {[%clk 0:01:15.1]} 23. Qg5+ {[%clk 0:01:31.4]} 23... Kf8 {[%clk
0:01:11.1]} 24. Bc5+ {[%clk 0:01:31.6]} 1-0

[Event "Late-Titled-Tuesday-Blitz-March-05-2024"]
[Site "Chess.com"]
[Date "2024.03.05"]
[Round "2"]
[White "Mikasinski"]
[Black "Firouzja2003"]
[Result "1-0"]
[WhiteElo "2666"]
[BlackElo "3215"]
[TimeControl "180+1"]
[EndTime "14:15:23 PST"]
[Termination "Mikasinski won by resignation"]

1. e4 {[%clk 0:03:00.9]} 1... c6 {[%clk 0:02:59.4]} 2. d4 {[%clk 0:03:01]} 2...
d5 {[%clk 0:03:00.3]} 3. e5 {[%clk 0:02:55.5]} 3... Bf5 {[%clk 0:03:00.4]} 4. h4
{[%clk 0:02:55.6]} 4... h5 {[%clk 0:03:00]} 5. Bd3 {[%clk 0:02:56]} 5... Bxd3
{[%clk 0:02:59.9]} 6. Qxd3 {[%clk 0:02:56.6]} 6... e6 {[%clk 0:02:59.6]} 7. Bg5
{[%clk 0:02:54.2]} 7... Qa5+ {[%clk 0:02:56]} 8. Nd2 {[%clk 0:02:45.9]} 8... Ne7
{[%clk 0:02:55.9]} 9. Nf3 {[%clk 0:02:41.7]} 9... Nf5 {[%clk 0:02:55.2]} 10. O-O
{[%clk 0:02:41.6]} 10... Qa6 {[%clk 0:02:53.4]} 11. c4 {[%clk 0:02:38.6]} 11...
Nd7 {[%clk 0:02:51.2]} 12. Qc2 {[%clk 0:02:30.8]} 12... Bb4 {[%clk 0:02:45.3]}
13. b3 {[%clk 0:02:30.7]} 13... O-O {[%clk 0:02:40]} 14. Rfd1 {[%clk 0:02:27.3]}
14... Nb6 {[%clk 0:02:26.6]} 15. c5 {[%clk 0:02:19.7]} 15... Bxd2 {[%clk
0:02:26.6]} 16. Qxd2 {[%clk 0:02:04.3]} 16... Nd7 {[%clk 0:02:26.8]} 17. Qf4
{[%clk 0:01:53]} 17... b6 {[%clk 0:02:23.9]} 18. cxb6 {[%clk 0:01:50.7]} 18...
axb6 {[%clk 0:02:23.9]} 19. g4 {[%clk 0:01:45.5]} 19... hxg4 {[%clk 0:02:15.8]}
20. Qxg4 {[%clk 0:01:45.9]} 20... f6 {[%clk 0:01:57.5]} 21. exf6 {[%clk
0:01:43.7]} 21... Nxf6 {[%clk 0:01:58.4]} 22. Bxf6 {[%clk 0:01:40]} 22... Rxf6
{[%clk 0:01:59.3]} 23. Ng5 {[%clk 0:01:33.1]} 23... Raf8 {[%clk 0:01:53.3]} 24.
Re1 {[%clk 0:01:30.2]} 24... Nh6 {[%clk 0:01:32.5]} 25. Qh3 {[%clk 0:01:30]}
25... Rxf2 {[%clk 0:01:23.4]} 26. Qxe6+ {[%clk 0:01:28.5]} 26... R2f7 {[%clk
0:01:16.3]} 27. Qg6 {[%clk 0:01:19.6]} 1-0

[Event "Late-Titled-Tuesday-Blitz-March-05-2024"]
[Site "Chess.com"]
[Date "2024.03.05"]
[Round "2"]
[White "Arlo2024"]
[Black "terrortoast"]
[Result "0-1"]
[WhiteElo "2294"]
[BlackElo "2519"]
[TimeControl "180+1"]
[EndTime "14:15:28 PST"]
[Termination "terrortoast won on time"]

1. e4 {[%clk 0:03:00.9]} 1... c6 {[%clk 0:02:58.5]} 2. d4 {[%clk 0:03:00.9]}
2... d5 {[%clk 0:02:58.8]} 3. exd5 {[%clk 0:03:01.8]} 3... cxd5 {[%clk
0:02:59.1]} 4. Bd3 {[%clk 0:03:02.6]} 4... Nc6 {[%clk 0:02:58.7]} 5. c3 {[%clk
0:03:03.3]} 5... e6 {[%clk 0:02:59.1]} 6. Nf3 {[%clk 0:03:02.4]} 6... Bd6 {[%clk
0:02:59.4]} 7. O-O {[%clk 0:03:02.2]} 7... Nge7 {[%clk 0:03:00]} 8. Re1 {[%clk
0:03:02]} 8... Qc7 {[%clk 0:02:55.7]} 9. a3 {[%clk 0:02:58.9]} 9... Bd7 {[%clk
0:02:51.4]} 10. Qe2 {[%clk 0:02:48.2]} 10... O-O {[%clk 0:02:45.1]} 11. Ne5
{[%clk 0:02:00.8]} 11... Ng6 {[%clk 0:02:20.8]} 12. f4 {[%clk 0:01:40.1]} 12...
Rae8 {[%clk 0:02:16.9]} 13. Nd2 {[%clk 0:01:14.7]} 13... Nxf4 {[%clk 0:02:08.4]}
14. Qg4 {[%clk 0:00:10.9]} 14... Nxe5 {[%clk 0:01:44.8]} 0-1

[Event "Late-Titled-Tuesday-Blitz-March-05-2024"]
[Site "Chess.com"]
[Date "2024.03.05"]
[Round "2"]
[White "aceontheturn"]
[Black "bipe137"]
[Result "1-0"]
[WhiteElo "2790"]
[BlackElo "2546"]
[TimeControl "180+1"]
[EndTime "14:15:29 PST"]
[Termination "aceontheturn won by checkmate"]

1. e4 {[%clk 0:02:54.8]} 1... c5 {[%clk 0:02:59.3]} 2. Nc3 {[%clk 0:02:54.9]}
2... e6 {[%clk 0:02:58.9]} 3. f4 {[%clk 0:02:55]} 3... d5 {[%clk 0:02:58.8]} 4.
exd5 {[%clk 0:02:54.7]} 4... exd5 {[%clk 0:02:58.7]} 5. Bb5+ {[%clk 0:02:55.5]}
5... Nc6 {[%clk 0:02:57.6]} 6. Bxc6+ {[%clk 0:02:48.4]} 6... bxc6 {[%clk
0:02:56.8]} 7. Nf3 {[%clk 0:02:49.2]} 7... Ne7 {[%clk 0:02:48.7]} 8. O-O {[%clk
0:02:49.2]} 8... g6 {[%clk 0:02:43.6]} 9. b3 {[%clk 0:02:49.7]} 9... Bg7 {[%clk
0:02:43.5]} 10. Ba3 {[%clk 0:02:47.6]} 10... Qa5 {[%clk 0:02:38.5]} 11. Na4
{[%clk 0:02:48.2]} 11... Bxa1 {[%clk 0:02:26.9]} 12. Qxa1 {[%clk 0:02:49.1]}
12... O-O {[%clk 0:02:26.3]} 13. Bxc5 {[%clk 0:02:49.3]} 13... Re8 {[%clk
0:02:22.1]} 14. Re1 {[%clk 0:02:45.5]} 14... Be6 {[%clk 0:02:22]} 15. Qf6 {[%clk
0:02:38.9]} 15... Nf5 {[%clk 0:02:01.5]} 16. g4 {[%clk 0:02:39.2]} 16... Bd7
{[%clk 0:01:35.9]} 17. Rxe8+ {[%clk 0:02:23.7]} 17... Rxe8 {[%clk 0:01:36.8]}
18. gxf5 {[%clk 0:02:24.5]} 18... Bxf5 {[%clk 0:01:14.6]} 19. Bd4 {[%clk
0:02:22.9]} 19... Kf8 {[%clk 0:01:15.2]} 20. Qg7+ {[%clk 0:01:22.9]} 20... Ke7
{[%clk 0:01:14.7]} 21. Ne5 {[%clk 0:01:23.8]} 21... Qxd2 {[%clk 0:00:52.4]} 22.
Qxf7+ {[%clk 0:01:23.4]} 22... Kd8 {[%clk 0:00:53]} 23. Nxc6+ {[%clk 0:01:23.9]}
23... Kc8 {[%clk 0:00:52.6]} 24. Nxa7+ {[%clk 0:01:24.6]} 24... Kd8 {[%clk
0:00:48.4]} 25. Nc6+ {[%clk 0:01:25.5]} 25... Kc8 {[%clk 0:00:48.1]} 26. Nb6#
{[%clk 0:01:26.4]} 1-0

[Event "Late-Titled-Tuesday-Blitz-March-05-2024"]
[Site "Chess.com"]
[Date "2024.03.05"]
[Round "2"]
[White "esteban062000"]
[Black "N18player"]
[Result "0-1"]
[WhiteElo "2157"]
[BlackElo "2530"]
[TimeControl "180+1"]
[EndTime "14:15:37 PST"]
[Termination "N18player won by resignation"]

1. e4 {[%clk 0:03:00.9]} 1... e6 {[%clk 0:03:00.9]} 2. e5 {[%clk 0:02:58]} 2...
d5 {[%clk 0:03:01.8]} 3. exd6 {[%clk 0:02:58.9]} 3... Bxd6 {[%clk 0:03:00.1]} 4.
d4 {[%clk 0:02:59.4]} 4... Nf6 {[%clk 0:02:57.9]} 5. Nf3 {[%clk 0:02:59.5]} 5...
b6 {[%clk 0:02:58.1]} 6. Bb5+ {[%clk 0:02:56.4]} 6... Nbd7 {[%clk 0:02:56.3]} 7.
Bc6 {[%clk 0:02:38]} 7... Rb8 {[%clk 0:02:51.1]} 8. O-O {[%clk 0:02:36]} 8...
O-O {[%clk 0:02:50.6]} 9. Bg5 {[%clk 0:02:32.9]} 9... h6 {[%clk 0:02:48.6]} 10.
Bh4 {[%clk 0:02:32.1]} 10... Bb7 {[%clk 0:02:46.5]} 11. Bxb7 {[%clk 0:02:26.4]}
11... Rxb7 {[%clk 0:02:47.4]} 12. Nc3 {[%clk 0:02:19.5]} 12... c6 {[%clk
0:02:31.9]} 13. Ne4 {[%clk 0:02:02.4]} 13... Be7 {[%clk 0:02:26]} 14. Nxf6+
{[%clk 0:01:43.5]} 14... Nxf6 {[%clk 0:02:23.9]} 15. c3 {[%clk 0:01:39.5]} 15...
Rd7 {[%clk 0:02:22]} 16. Qa4 {[%clk 0:01:38]} 16... b5 {[%clk 0:02:18.2]} 17.
Qb3 {[%clk 0:01:34.4]} 17... Rd5 {[%clk 0:02:10.8]} 18. Rfe1 {[%clk 0:01:28.6]}
18... a6 {[%clk 0:02:07.1]} 19. Re5 {[%clk 0:01:24.6]} 19... c5 {[%clk 0:02:05]}
20. Rxd5 {[%clk 0:01:18.6]} 20... Nxd5 {[%clk 0:02:03.3]} 21. Bxe7 {[%clk
0:01:17.7]} 21... Qxe7 {[%clk 0:02:04.2]} 22. dxc5 {[%clk 0:01:16.1]} 22... Qxc5
{[%clk 0:02:03.9]} 23. Rd1 {[%clk 0:01:07.3]} 23... a5 {[%clk 0:01:59.6]} 24.
Nd4 {[%clk 0:00:49]} 24... b4 {[%clk 0:01:56.9]} 25. cxb4 {[%clk 0:00:40.9]}
25... axb4 {[%clk 0:01:56.4]} 26. Qc2 {[%clk 0:00:37.2]} 26... Qa7 {[%clk
0:01:49.5]} 27. Ra1 {[%clk 0:00:24]} 27... Qxd4 {[%clk 0:01:47.1]} 0-1

[Event "Late-Titled-Tuesday-Blitz-March-05-2024"]
[Site "Chess.com"]
[Date "2024.03.05"]
[Round "2"]
[White "soloderisas"]
[Black "TenisMaster"]
[Result "0-1"]
[WhiteElo "2589"]
[BlackElo "2881"]
[TimeControl "180+1"]
[EndTime "14:15:40 PST"]
[Termination "TenisMaster won by checkmate"]

1. d4 {[%clk 0:03:00.8]} 1... Nf6 {[%clk 0:02:59.4]} 2. Nf3 {[%clk 0:03:01]}
2... d5 {[%clk 0:02:58.8]} 3. Bf4 {[%clk 0:02:59.9]} 3... c5 {[%clk 0:02:58.5]}
4. e3 {[%clk 0:02:59.4]} 4... Nc6 {[%clk 0:02:58]} 5. c3 {[%clk 0:02:59.4]} 5...
Bg4 {[%clk 0:02:57.8]} 6. Qb3 {[%clk 0:02:58.1]} 6... Qc8 {[%clk 0:02:55.3]} 7.
Ne5 {[%clk 0:02:55.4]} 7... Nxe5 {[%clk 0:02:47.1]} 8. dxe5 {[%clk 0:02:54.3]}
8... c4 {[%clk 0:02:40.2]} 9. Qa4+ {[%clk 0:02:53.6]} 9... Bd7 {[%clk
0:02:38.8]} 10. Qd1 {[%clk 0:02:53.9]} 10... Ne4 {[%clk 0:02:16.6]} 11. Qxd5
{[%clk 0:02:53.7]} 11... Nc5 {[%clk 0:02:16.5]} 12. Bxc4 {[%clk 0:02:42.3]}
12... Be6 {[%clk 0:02:16]} 13. Bb5+ {[%clk 0:02:41.6]} 13... Nd7 {[%clk
0:02:14]} 14. Qd3 {[%clk 0:02:25.3]} 14... a6 {[%clk 0:02:11.5]} 15. Bxd7+
{[%clk 0:02:25.4]} 15... Bxd7 {[%clk 0:02:11.1]} 16. Nd2 {[%clk 0:02:25.1]}
16... Bb5 {[%clk 0:02:05.7]} 17. c4 {[%clk 0:02:24.2]} 17... Bc6 {[%clk
0:02:05.9]} 18. O-O {[%clk 0:02:22.4]} 18... g5 {[%clk 0:01:57]} 19. Bg3 {[%clk
0:02:11.4]} 19... h5 {[%clk 0:01:56.8]} 20. f3 {[%clk 0:01:44.9]} 20... h4
{[%clk 0:01:54.8]} 21. Bf2 {[%clk 0:01:44.7]} 21... h3 {[%clk 0:01:54.7]} 22. g3
{[%clk 0:01:41.4]} 22... Bg7 {[%clk 0:01:51.9]} 23. f4 {[%clk 0:01:37.1]} 23...
Qg4 {[%clk 0:01:48.4]} 24. Rfe1 {[%clk 0:01:06.5]} 24... Rd8 {[%clk 0:01:34.2]}
25. Qe2 {[%clk 0:01:03.5]} 25... Qe6 {[%clk 0:01:30.2]} 26. Nb3 {[%clk
0:00:57.7]} 26... Qg6 {[%clk 0:01:19]} 27. Nd4 {[%clk 0:00:52.9]} 27... Qe4
{[%clk 0:01:16.1]} 28. Nxc6 {[%clk 0:00:51.4]} 28... Qg2# {[%clk 0:01:15.9]} 0-1

[Event "Late-Titled-Tuesday-Blitz-March-05-2024"]
[Site "Chess.com"]
[Date "2024.03.05"]
[Round "2"]
[White "EsmeraldasAnderson03"]
[Black "SEBAZZANO"]
[Result "1-0"]
[WhiteElo "2527"]
[BlackElo "2316"]
[TimeControl "180+1"]
[EndTime "14:15:42 PST"]
[Termination "EsmeraldasAnderson03 won by resignation"]

1. d4 {[%clk 0:03:00.9]} 1... Nf6 {[%clk 0:02:59.4]} 2. c4 {[%clk 0:03:01.5]}
2... c5 {[%clk 0:02:59.1]} 3. d5 {[%clk 0:03:01.7]} 3... e6 {[%clk 0:02:59.2]}
4. Nc3 {[%clk 0:03:01.5]} 4... exd5 {[%clk 0:02:59.6]} 5. cxd5 {[%clk
0:03:02.4]} 5... d6 {[%clk 0:02:59.9]} 6. e4 {[%clk 0:03:02.9]} 6... g6 {[%clk
0:03:00.3]} 7. Nf3 {[%clk 0:03:03.5]} 7... Bg7 {[%clk 0:03:00.7]} 8. Nd2 {[%clk
0:03:02.4]} 8... O-O {[%clk 0:03:00.5]} 9. Be2 {[%clk 0:03:03.2]} 9... a6 {[%clk
0:03:00.1]} 10. a4 {[%clk 0:03:02.5]} 10... Re8 {[%clk 0:03:00.5]} 11. O-O
{[%clk 0:03:00.6]} 11... Nbd7 {[%clk 0:03:00.3]} 12. h3 {[%clk 0:02:58.8]} 12...
Qc7 {[%clk 0:02:52.9]} 13. Qc2 {[%clk 0:02:53.6]} 13... Rb8 {[%clk 0:02:51.3]}
14. Nc4 {[%clk 0:02:44.2]} 14... Ne5 {[%clk 0:02:32.4]} 15. Nxe5 {[%clk
0:02:43.5]} 15... Rxe5 {[%clk 0:02:32]} 16. Bf4 {[%clk 0:02:43.9]} 16... Re8
{[%clk 0:02:24.3]} 17. Rfe1 {[%clk 0:02:43.7]} 17... Nd7 {[%clk 0:02:23.3]} 18.
Bg3 {[%clk 0:02:40.6]} 18... g5 {[%clk 0:02:01.1]} 19. f4 {[%clk 0:02:29.5]}
19... gxf4 {[%clk 0:01:59.5]} 20. Bxf4 {[%clk 0:02:30.4]} 20... Ne5 {[%clk
0:01:59.4]} 21. Rf1 {[%clk 0:02:29.9]} 21... Bd7 {[%clk 0:01:58.2]} 22. Bh5
{[%clk 0:02:24.9]} 22... Rf8 {[%clk 0:01:51.1]} 23. Qf2 {[%clk 0:02:24.3]} 23...
Ng6 {[%clk 0:01:26]} 24. Qg3 {[%clk 0:02:18.6]} 24... Nxf4 {[%clk 0:00:58.7]}
25. Rxf4 {[%clk 0:02:18.2]} 25... Kh8 {[%clk 0:00:59.1]} 26. Rxf7 {[%clk
0:02:15.1]} 26... Rxf7 {[%clk 0:00:58.1]} 27. Bxf7 {[%clk 0:02:16]} 27... Bd4+
{[%clk 0:00:50.4]} 28. Kh1 {[%clk 0:02:15.2]} 28... Bxa4 {[%clk 0:00:27]} 29.
Nxa4 {[%clk 0:01:57]} 29... Qxf7 {[%clk 0:00:25.5]} 30. Qxd6 {[%clk 0:01:57.4]}
30... Qg7 {[%clk 0:00:18.5]} 31. Qxb8+ {[%clk 0:01:55.6]} 1-0